fUSD/lending_fUSD_20250616
["ID","MTS","AMOUNT","RATE_DAILY","PERIOD"]
[366121300,1750073484708,-118.18305913,0.00016931,2]
[366121301,1750073484717,-341.30694084,0.00016931,2]
[366121302,1750073484729,-148.69305916,0.00016931,2]
[366121303,1750073484738,-873.59,0.00016931,2]
[366121304,1750073484748,-636.48,0.00016931,2]
[366121305,1750073484758,-3154.7,0.00016931,2]
[366121306,1750073484768,-1268.27,0.00016931,2]
[366121307,1750073484778,-13515.53,0.00016931,2]
[366121308,1750073484788,-866.45,0.00016931,2]
[366121309,1750073484797,-490.0,0.00016931,2]
[366121310,1750073484807,-2856.11,0.00016931,2]
[366121311,1750073484817,-933.53,0.00016931,2]
[366121312,1750073484827,-490.0,0.00016931,2]
[366121313,1750073484836,-97.69722202,0.00016931,2]
[366121314,1750073484848,-392.30277798,0.00016931,2]
[366121315,1750073484858,-490.0,0.00016931,2]
[366121316,1750073484868,-2277.78837995,0.00016931,2]
[366121317,1750073484880,-1407.29162005,0.00016931,2]
[366121318,1750073484889,-785.02,0.00016931,2]
[366121319,1750073484899,-1489.61,0.00016931,2]
[366121320,1750073484909,-1979.87,0.00016931,2]
[366121321,1750073484919,-928.45,0.00016931,2]
[366121322,1750073484929,-490.0,0.00016931,2]
[366121323,1750073484939,-4534.64,0.00016931,2]
[366121324,1750073484949,-280.64922719,0.00016931,2]
[366121325,1750073484961,-8558.36077281,0.00016931,2]
[366121326,1750073484970,-1020.06,0.00016931,2]
[366121327,1750073484980,-1310.12,0.00016931,2]
[366121328,1750073484990,-682.12,0.00016931,2]
[366121329,1750073485000,-611.33033129,0.00016931,2]
[366121330,1750073485047,-1687.03966871,0.00016931,2]
[366121331,1750073485057,-490.0,0.00016931,2]
[366121332,1750073485067,-852.06,0.00016931,2]
[366121333,1750073485077,-506.02,0.00016931,2]
[366121334,1750073485087,-1720.83,0.00016931,2]
[366121335,1750073485098,-2414.02,0.00016931,2]
[366121336,1750073485108,-903.93093123,0.00016931,2]
[366121337,1750073485120,-920.51906877,0.00016931,2]
[366121338,1750073485130,-931.98474929,0.00016931,2]
[366121339,1750073485142,-777.71525071,0.00016931,2]
[366121340,1750073485152,-1686.95,0.00016931,2]
[366121341,1750073485162,-1556.15,0.00016931,2]
[366121342,1750073485173,-490.0,0.00016931,2]
[366121343,1750073485182,-759.35,0.00016931,2]
[366121344,1750073485193,-1299.84,0.00016931,2]
[366121345,1750073485203,-529.59,0.00016931,2]
[366121346,1750073485213,-1475.98,0.00016931,2]
[366121347,1750073485223,-3767.53,0.00016931,2]
[366121348,1750073485233,-490.0,0.00016931,2]
[366121349,1750073485243,-1729.11,0.00016931,2]
[366121350,1750073485253,-490.0,0.00016931,2]
[366121351,1750073485262,-1173.71,0.00016931,2]
[366121352,1750073485272,-490.0,0.00016931,2]
[366121353,1750073485282,-1109.18,0.00016931,2]
[366121354,1750073485292,-1453.01,0.00016931,2]
[366121355,1750073485303,-490.0,0.00016931,2]
[366121356,1750073485313,-4250.71,0.00016931,2]
[366121357,1750073485322,-1989.15,0.00016931,2]
[366121358,1750073485335,-490.0,0.00016931,2]
[366121359,1750073485345,-1219.17668653,0.00016931,2]
[366121360,1750073485357,-913.06331347,0.00016931,2]
[366121361,1750073485368,-831.82,0.00016931,2]
[366121362,1750073485379,-396.39068653,0.00016931,2]
[366121364,1750073650158,338.0,0.0001517,2]
[366121366,1750073681313,456.63,0.00015446,2]
[366121367,1750073792224,4069.65061432,0.00015,2]
[366121368,1750073892170,205.0,0.0001523,2]
[366121369,1750074092928,150.0,0.00015491,2]
[366121370,1750074099333,1280.0,0.00024658,120]
[366121371,1750074112487,1280.0,0.00024658,120]
[366121372,1750074124307,1280.0,0.00024658,120]
[366121373,1750074140657,1280.0,0.00024658,120]
[366121374,1750074154517,1280.0,0.00024658,120]
[366121375,1750074166924,1276.75,0.00024658,120]
[366121379,1750074505234,720.74,0.00015329,2]
[366121388,1750074611715,205.0,0.00014547,2]
[366121392,1750074632130,-300.0,0.00015576,2]
[366121393,1750074632141,-230.84546776,0.00015606,2]
[366121394,1750074632169,-107.15453224,0.00015606,2]
[366121395,1750074632179,-222.60933427,0.00015612,2]
[366121396,1750074632194,-342.11,0.00015612,2]
[366121397,1750074632222,-338.84532906,0.00015612,2]
[366121398,1750074632234,-96.43533667,0.00015612,2]
[366121399,1750074632243,-952.13,0.00015661,2]
[366121400,1750074632253,-338.0,0.00015761,2]
[366121402,1750074632263,-338.0,0.000158,2]
[366121404,1750074632273,-338.0,0.00015919,2]
[366121406,1750074632282,-205.0,0.00015924,3]
[366121407,1750074632292,-1200.0,0.00015989,2]
[366121408,1750074632302,-1695.93466333,0.0001599,2]
[366121409,1750074632314,-1689.2190827,0.0001599,2]
[366121410,1750074632323,-207.4,0.0001599,2]
[366121411,1750074632332,-173.53,0.00015999,2]
[366121412,1750074632341,-503.66,0.00016,2]
[366121413,1750074632351,-499.31,0.00016,2]
[366121414,1750074632360,-497.81,0.00016,2]
[366121415,1750074632369,-300.76,0.00016,2]
[366121416,1750074632380,-503.3,0.00016,2]
[366121417,1750074632390,-63.60957219,0.00016,2]
[366121418,1750074632403,-431.60042781,0.00016,2]
[366121419,1750074632412,-243.40125304,0.00016,2]
[366121450,1750074637763,-262.56874696,0.00016,2]
[366121451,1750074637773,-301.27,0.00016,2]
[366121452,1750074637783,-505.84,0.00016,2]
[366121453,1750074637794,-490.0,0.00016,3]
[366121454,1750074637804,-338.0,0.0001602,2]
[366121455,1750074637814,-461.62,0.000161,2]
[366121456,1750074637823,-797.51,0.000161,2]
[366121457,1750074637833,-633.8708872,0.000161,2]
[366121458,1750074637872,-163.6391128,0.000161,2]
[366121459,1750074637883,-461.62,0.000161,2]
[366121460,1750074637893,-797.51,0.000161,2]
[366121461,1750074637903,-461.62,0.000161,2]
[366121462,1750074637914,-797.51,0.000161,2]
[366121463,1750074637924,-461.62,0.000161,2]
[366121464,1750074637933,-295.4808872,0.000161,2]
[366121465,1750074637945,-166.1391128,0.000161,2]
[366121466,1750074637955,-461.62,0.000161,2]
[366121467,1750074637964,-528.0295932,0.000161,2]
[366121468,1750074637980,-269.4804068,0.000161,2]
[366121469,1750074637989,-461.62,0.000161,2]
[366121470,1750074637998,-797.51,0.000161,2]
[366121471,1750074638007,-797.51,0.000161,2]
[366121472,1750074638016,-461.62,0.000161,2]
[366121473,1750074638026,-797.51,0.000161,2]
[366121474,1750074638035,-460.86,0.000161,2]
[366121475,1750074638045,-797.51,0.000161,2]
[366121476,1750074638054,-587.71560697,0.000161,2]
[366121477,1750074638081,-209.79439303,0.000161,2]
[366121478,1750074638091,-134.51036311,0.000161,2]
[366121479,1750074638102,-662.99963689,0.000161,2]
[366121480,1750074638112,-797.51,0.000161,2]
[366121481,1750074638121,-797.51,0.000161,2]
[366121482,1750074638130,-700.0,0.00016164,2]
[366121483,1750074638144,-500.0,0.00016164,2]
[366121484,1750074638155,-417.28,0.00016192,2]
[366121485,1750074638164,-163.42,0.00016192,2]
[366121486,1750074638173,-947.83,0.00016192,2]
[366121487,1750074638182,-910.16,0.00016192,2]
[366121488,1750074638191,-2792.75968623,0.0001626,2]
[366121489,1750074638200,-159.39672903,0.00016338,2]
[366121490,1750074638210,-300.0,0.00016339,2]
[366121491,1750074638220,-152.0,0.00016414,3]
[366121492,1750074638229,-662.235,0.00016428,2]
[366121493,1750074638238,-165.09,0.00016428,2]
[366121494,1750074638248,-151.0,0.00016428,2]
[366121495,1750074638258,-90.85277623,0.00016438,2]
[366121497,1750074639922,-60.14722377,0.00016438,2]
[366121498,1750074639932,-151.0,0.00016438,2]
[366121499,1750074639943,-151.178491,0.00016438,2]
[366121500,1750074639953,-360.92753856,0.00016438,2]
[366121501,1750074639962,-151.0,0.00016438,2]
[366121502,1750074639973,-2371.67068,0.00016438,2]
[366121503,1750074639985,-1877.550546,0.00016438,2]
[366121504,1750074639999,-490.0,0.00016438,2]
[366121505,1750074640009,-490.0,0.00016438,2]
[366121506,1750074640019,-490.0,0.00016438,2]
[366121507,1750074640028,-490.0,0.00016438,2]
[366121508,1750074640037,-490.0,0.00016438,2]
[366121509,1750074640046,-490.0,0.00016438,2]
[366121510,1750074640056,-494.55262997,0.00016438,2]
[366121511,1750074640066,-490.0,0.00016438,2]
[366121512,1750074640075,-490.0,0.00016438,2]
[366121513,1750074640085,-490.0,0.00016438,2]
[366121514,1750074640095,-490.0,0.00016438,2]
[366121515,1750074640105,-490.0,0.00016438,2]
[366121516,1750074640115,-490.0,0.00016438,2]
[366121517,1750074640124,-490.0,0.00016438,2]
[366121518,1750074640134,-490.0,0.00016438,2]
[366121519,1750074640144,-490.0,0.00016438,2]
[366121520,1750074640154,-490.0,0.00016438,2]
[366121521,1750074640165,-490.0,0.00016438,2]
[366121522,1750074640174,-425.97651011,0.00016438,2]
[366121523,1750074640183,-490.0,0.00016438,2]
[366121524,1750074640193,-490.0,0.00016438,2]
[366121525,1750074640202,-490.0,0.00016438,2]
[366121526,1750074640212,-490.0,0.00016438,2]
[366121527,1750074640222,-490.0,0.00016438,2]
[366121528,1750074640231,-490.0,0.00016438,2]
[366121529,1750074640241,-490.0,0.00016438,2]
[366121530,1750074640251,-490.0,0.00016438,2]
[366121531,1750074640260,-490.0,0.00016438,2]
[366121532,1750074640270,-490.0,0.00016438,2]
[366121533,1750074640279,-490.0,0.00016438,2]
[366121534,1750074640289,-490.0,0.00016438,2]
[366121535,1750074640298,-490.0,0.00016438,2]
[366121536,1750074640308,-490.0,0.00016438,2]
[366121537,1750074640317,-508.57411527,0.00016438,2]
[366121538,1750074640326,-490.0,0.00016438,2]
[366121539,1750074640336,-490.0,0.00016438,2]
[366121540,1750074640345,-723.66,0.00016438,2]
[366121541,1750074640355,-494.70805296,0.00016438,2]
[366121542,1750074640364,-490.0,0.00016438,2]
[366121543,1750074640373,-490.0,0.00016438,2]
[366121544,1750074640383,-490.0,0.00016438,2]
[366121545,1750074640393,-490.0,0.00016438,2]
[366121546,1750074640403,-490.0,0.00016438,2]
[366121547,1750074640412,-490.0,0.00016438,2]
[366121548,1750074640421,-490.0,0.00016438,2]
[366121549,1750074640431,-490.0,0.00016438,2]
[366121550,1750074640441,-490.0,0.00016438,2]
[366121551,1750074640452,-490.0,0.00016438,2]
[366121552,1750074640462,-816.31,0.00016438,2]
[366121553,1750074640473,-703.05,0.00016438,2]
[366121554,1750074640483,-490.0,0.00016438,2]
[366121555,1750074640493,-490.0,0.00016438,2]
[366121556,1750074640503,-972.65,0.00016438,2]
[366121557,1750074640513,-490.0,0.00016438,2]
[366121558,1750074640523,-490.0,0.00016438,2]
[366121559,1750074640533,-492.75312454,0.00016438,2]
[366121560,1750074640542,-400.9071429,0.00016438,2]
[366121561,1750074640552,-855.66,0.00016438,2]
[366121562,1750074640562,-490.0,0.00016438,2]
[366121563,1750074640572,-660.27,0.00016438,2]
[366121564,1750074640581,-519.22837315,0.00016438,2]
[366121565,1750074640591,-573.52,0.00016438,2]
[366121566,1750074640601,-490.0,0.00016438,2]
[366121567,1750074640610,-490.0,0.00016438,2]
[366121568,1750074640620,-490.0,0.00016438,2]
[366121569,1750074640630,-537.5,0.00016438,2]
[366121570,1750074640639,-490.0,0.00016438,2]
[366121571,1750074640650,-490.0,0.00016438,2]
[366121572,1750074640660,-158.111378,0.00016438,2]
[366121573,1750074640671,-490.0,0.00016438,2]
[366121574,1750074640681,-499.61,0.00016438,2]
[366121575,1750074640693,-827.08,0.00016438,2]
[366121576,1750074640705,-1026.17,0.00016438,2]
[366121577,1750074640716,-490.0,0.00016438,2]
[366121578,1750074640726,-1305.8,0.00016438,2]
[366121579,1750074640736,-705.08,0.00016438,2]
[366121580,1750074640746,-809.48,0.00016438,2]
[366121581,1750074640756,-771.56,0.00016438,2]
[366121582,1750074640765,-490.0,0.00016438,2]
[366121583,1750074640776,-1052.87,0.00016438,2]
[366121584,1750074640789,-490.0,0.00016438,2]
[366121585,1750074640800,-157.11969,0.00016438,2]
[366121586,1750074640809,-490.0,0.00016438,2]
[366121587,1750074640819,-1222.25,0.00016438,2]
[366121588,1750074640828,-490.0,0.00016438,2]
[366121589,1750074640839,-650.16,0.00016438,2]
[366121590,1750074640849,-1096.95,0.00016438,2]
[366121591,1750074640861,-490.0,0.00016438,2]
[366121592,1750074640871,-836.54,0.00016438,2]
[366121593,1750074640880,-490.0,0.00016438,2]
[366121594,1750074640889,-737.54,0.00016438,2]
[366121595,1750074640898,-490.0,0.00016438,2]
[366121596,1750074640908,-583.52,0.00016438,2]
[366121597,1750074640917,-490.0,0.00016438,2]
[366121598,1750074640926,-490.0,0.00016438,2]
[366121599,1750074640936,-490.0,0.00016438,2]
[366121600,1750074640946,-490.0,0.00016438,2]
[366121601,1750074640956,-567.56,0.00016438,2]
[366121602,1750074640966,-685.37,0.00016438,2]
[366121603,1750074640976,-490.0,0.00016438,2]
[366121604,1750074640985,-490.0,0.00016438,2]
[366121605,1750074640995,-626.88,0.00016438,2]
[366121606,1750074641005,-925.9,0.00016438,2]
[366121607,1750074641015,-490.0,0.00016438,2]
[366121608,1750074641036,-490.0,0.00016438,2]
[366121609,1750074641048,-669.84,0.00016438,2]
[366121610,1750074641057,-490.0,0.00016438,2]
[366121611,1750074641067,-490.0,0.00016438,2]
[366121612,1750074641077,-1069.22,0.00016438,2]
[366121613,1750074641087,-578.33,0.00016438,2]
[366121614,1750074641096,-790.77,0.00016438,2]
[366121615,1750074641106,-953.21,0.00016438,2]
[366121616,1750074641116,-490.0,0.00016438,2]
[366121617,1750074641126,-490.0,0.00016438,2]
[366121618,1750074641136,-490.0,0.00016438,2]
[366121619,1750074641145,-490.0,0.00016438,2]
[366121620,1750074641156,-490.0,0.00016438,2]
[366121621,1750074641165,-490.0,0.00016438,2]
[366121622,1750074641174,-748.67,0.00016438,2]
[366121623,1750074641184,-178.84054972,0.00016438,2]
[366121624,1750074641193,-490.0,0.00016438,2]
[366121625,1750074641202,-490.0,0.00016438,2]
[366121626,1750074641211,-490.0,0.00016438,2]
[366121627,1750074641221,-731.98,0.00016438,2]
[366121628,1750074641230,-490.0,0.00016438,2]
[366121629,1750074641239,-948.22,0.00016438,2]
[366121630,1750074641248,-490.0,0.00016438,2]
[366121631,1750074641257,-1386.67,0.00016438,2]
[366121632,1750074641266,-490.0,0.00016438,2]
[366121633,1750074641275,-493.25456761,0.00016438,2]
[366121634,1750074641284,-490.0,0.00016438,2]
[366121635,1750074641294,-490.0,0.00016438,2]
[366121636,1750074641304,-490.0,0.00016438,2]
[366121637,1750074641314,-900.51,0.00016438,2]
[366121638,1750074641323,-847.46,0.00016438,2]
[366121639,1750074641333,-926.51,0.00016438,2]
[366121640,1750074641343,-490.0,0.00016438,2]
[366121641,1750074641353,-490.0,0.00016438,2]
[366121642,1750074641363,-490.0,0.00016438,2]
[366121643,1750074641372,-490.0,0.00016438,2]
[366121644,1750074641382,-490.0,0.00016438,2]
[366121645,1750074641391,-1673.36,0.00016438,2]
[366121646,1750074641401,-645.51,0.00016438,2]
[366121647,1750074641411,-490.0,0.00016438,2]
[366121648,1750074641420,-490.0,0.00016438,2]
[366121649,1750074641430,-490.0,0.00016438,2]
[366121650,1750074641440,-490.0,0.00016438,2]
[366121651,1750074641449,-944.85,0.00016438,2]
[366121652,1750074641460,-528.49,0.00016438,2]
[366121653,1750074641469,-490.0,0.00016438,2]
[366121654,1750074641486,-747.93,0.00016438,2]
[366121655,1750074641496,-490.0,0.00016438,2]
[366121656,1750074641507,-490.0,0.00016438,2]
[366121657,1750074641516,-490.0,0.00016438,2]
[366121658,1750074641526,-490.0,0.00016438,2]
[366121659,1750074641536,-490.0,0.00016438,2]
[366121660,1750074641545,-490.0,0.00016438,2]
[366121661,1750074641555,-490.0,0.00016438,2]
[366121662,1750074641564,-490.0,0.00016438,2]
[366121663,1750074641574,-1214.63,0.00016438,2]
[366121664,1750074641584,-490.0,0.00016438,2]
[366121665,1750074641594,-490.0,0.00016438,2]
[366121666,1750074641603,-512.45,0.00016438,2]
[366121667,1750074641613,-490.0,0.00016438,2]
[366121668,1750074641623,-550.12,0.00016438,2]
[366121669,1750074641633,-593.35,0.00016438,2]
[366121670,1750074641642,-490.0,0.00016438,2]
[366121671,1750074641652,-490.0,0.00016438,2]
[366121672,1750074641662,-1353.64,0.00016438,2]
[366121673,1750074641671,-356.7813325,0.00016438,2]
[366121674,1750074641681,-490.0,0.00016438,2]
[366121675,1750074641691,-490.0,0.00016438,2]
[366121676,1750074641702,-490.0,0.00016438,2]
[366121677,1750074641718,-554.74,0.00016438,2]
[366121678,1750074641728,-1349.89,0.00016438,2]
[366121679,1750074641738,-925.25,0.00016438,2]
[366121680,1750074641748,-577.92,0.00016438,2]
[366121681,1750074641757,-490.0,0.00016438,2]
[366121682,1750074641767,-855.67,0.00016438,2]
[366121683,1750074641777,-490.0,0.00016438,2]
[366121684,1750074641787,-490.0,0.00016438,2]
[366121685,1750074641798,-490.0,0.00016438,2]
[366121686,1750074641807,-490.0,0.00016438,2]
[366121687,1750074641816,-490.0,0.00016438,2]
[366121688,1750074641826,-490.0,0.00016438,2]
[366121689,1750074641835,-735.78,0.00016438,2]
[366121690,1750074641845,-490.0,0.00016438,2]
[366121691,1750074641854,-490.0,0.00016438,2]
[366121692,1750074641863,-768.55,0.00016438,2]
[366121693,1750074641873,-1620.25,0.00016438,2]
[366121694,1750074641883,-490.0,0.00016438,2]
[366121695,1750074641893,-875.21,0.00016438,2]
[366121696,1750074641902,-529.18,0.00016438,2]
[366121697,1750074641911,-490.0,0.00016438,2]
[366121698,1750074641921,-453.10325061,0.00016438,2]
[366121699,1750074641932,-300.0,0.00016438,2]
[366121700,1750074641943,-1118.43,0.00016438,2]
[366121701,1750074641955,-758.35,0.00016438,2]
[366121702,1750074641965,-490.0,0.00016438,2]
[366121703,1750074641976,-490.0,0.00016438,2]
[366121704,1750074641985,-490.0,0.00016438,2]
[366121705,1750074641995,-490.0,0.00016438,2]
[366121706,1750074642005,-859.39,0.00016438,2]
[366121707,1750074642014,-490.0,0.00016438,2]
[366121708,1750074642023,-490.0,0.00016438,2]
[366121709,1750074642034,-989.76,0.00016438,2]
[366121710,1750074642043,-1245.03,0.00016438,2]
[366121711,1750074642054,-1205.55,0.00016438,2]
[366121712,1750074642063,-490.0,0.00016438,2]
[366121713,1750074642073,-563.29,0.00016438,2]
[366121714,1750074642083,-490.0,0.00016438,2]
[366121715,1750074642092,-490.0,0.00016438,2]
[366121716,1750074642102,-310.19505661,0.00016438,2]
[366121717,1750074642112,-490.0,0.00016438,2]
[366121718,1750074642121,-1575.01,0.00016438,2]
[366121719,1750074642131,-649.25,0.00016438,2]
[366121720,1750074642142,-490.0,0.00016438,2]
[366121721,1750074642151,-490.0,0.00016438,2]
[366121722,1750074642161,-490.0,0.00016438,2]
[366121723,1750074642173,-1326.5,0.00016438,2]
[366121724,1750074642183,-491.42602028,0.00016438,2]
[366121725,1750074642193,-490.0,0.00016438,2]
[366121726,1750074642204,-490.0,0.00016438,2]
[366121727,1750074642213,-490.0,0.00016438,2]
[366121728,1750074642223,-490.0,0.00016438,2]
[366121729,1750074642233,-490.0,0.00016438,2]
[366121730,1750074642242,-490.0,0.00016438,2]
[366121731,1750074642252,-915.75,0.00016438,2]
[366121732,1750074642261,-490.0,0.00016438,2]
[366121733,1750074642272,-490.0,0.00016438,2]
[366121734,1750074642282,-1056.06,0.00016438,2]
[366121735,1750074642291,-490.0,0.00016438,2]
[366121736,1750074642300,-490.0,0.00016438,2]
[366121737,1750074642310,-490.0,0.00016438,2]
[366121738,1750074642320,-1831.26,0.00016438,2]
[366121739,1750074642330,-490.0,0.00016438,2]
[366121740,1750074642340,-490.0,0.00016438,2]
[366121741,1750074642349,-490.0,0.00016438,2]
[366121742,1750074642359,-754.58,0.00016438,2]
[366121743,1750074642369,-490.0,0.00016438,2]
[366121744,1750074642379,-490.0,0.00016438,2]
[366121745,1750074642389,-794.12,0.00016438,2]
[366121746,1750074642399,-950.78,0.00016438,2]
[366121747,1750074642409,-490.0,0.00016438,2]
[366121748,1750074642418,-490.0,0.00016438,2]
[366121749,1750074642428,-490.0,0.00016438,2]
[366121750,1750074642437,-490.0,0.00016438,2]
[366121751,1750074642447,-490.0,0.00016438,2]
[366121752,1750074642456,-490.0,0.00016438,2]
[366121753,1750074642466,-968.45,0.00016438,2]
[366121754,1750074642476,-1587.16,0.00016438,2]
[366121755,1750074642486,-510.41,0.00016438,2]
[366121756,1750074642497,-1092.62,0.00016438,2]
[366121757,1750074642507,-490.0,0.00016438,2]
[366121758,1750074642516,-490.0,0.00016438,2]
[366121759,1750074642526,-1022.1,0.00016438,2]
[366121760,1750074642535,-490.0,0.00016438,2]
[366121761,1750074642544,-490.0,0.00016438,2]
[366121763,1750074642554,-490.0,0.00016438,2]
[366121765,1750074642563,-777.69,0.00016438,2]
[366121766,1750074642572,-490.0,0.00016438,2]
[366121767,1750074642582,-972.13,0.00016438,2]
[366121768,1750074642592,-490.0,0.00016438,2]
[366121769,1750074642601,-988.7,0.00016438,2]
[366121770,1750074642611,-1169.09,0.00016438,2]
[366121771,1750074642621,-490.0,0.00016438,2]
[366121772,1750074642631,-490.0,0.00016438,2]
[366121774,1750074642641,-490.0,0.00016438,2]
[366121776,1750074642650,-490.0,0.00016438,2]
[366121777,1750074642660,-907.23,0.00016438,2]
[366121778,1750074642669,-1549.77,0.00016438,2]
[366121779,1750074642679,-490.0,0.00016438,2]
[366121780,1750074642688,-490.0,0.00016438,2]
[366121781,1750074642698,-490.0,0.00016438,2]
[366121783,1750074642714,-490.0,0.00016438,2]
[366121785,1750074642725,-490.0,0.00016438,2]
[366121788,1750074642734,-490.0,0.00016438,2]
[366121790,1750074642744,-490.0,0.00016438,2]
[366121793,1750074642756,-490.0,0.00016438,2]
[366121796,1750074642765,-495.39857586,0.00016438,2]
[366121797,1750074642775,-490.0,0.00016438,2]
[366121800,1750074642784,-602.69,0.00016438,2]
[366121802,1750074642795,-490.82,0.00016438,2]
[366121804,1750074642810,-490.0,0.00016438,2]
[366121806,1750074642833,-490.0,0.00016438,2]
[366121807,1750074642856,-977.31,0.00016438,2]
[366121809,1750074642879,-1066.56,0.00016438,2]
[366121810,1750074642902,-490.0,0.00016438,2]
[366121811,1750074642927,-808.97,0.00016438,2]
[366121812,1750074642951,-490.0,0.00016438,2]
[366121813,1750074642978,-490.0,0.00016438,2]
[366121814,1750074643008,-612.43,0.00016438,2]
[366121815,1750074643037,-737.94,0.00016438,2]
[366121816,1750074643063,-490.0,0.00016438,2]
[366121817,1750074643090,-490.0,0.00016438,2]
[366121818,1750074643104,-490.0,0.00016438,2]
[366121819,1750074643114,-1354.42,0.00016438,2]
[366121820,1750074643124,-554.54,0.00016438,2]
[366121821,1750074643134,-490.0,0.00016438,2]
[366121822,1750074643144,-490.0,0.00016438,2]
[366121824,1750074643154,-1052.98,0.00016438,2]
[366121825,1750074643164,-490.0,0.00016438,2]
[366121826,1750074643174,-490.0,0.00016438,2]
[366121827,1750074643184,-550.81,0.00016438,2]
[366121828,1750074643194,-1438.96,0.00016438,2]
[366121829,1750074643205,-490.0,0.00016438,2]
[366121830,1750074643215,-490.0,0.00016438,2]
[366121831,1750074643226,-490.0,0.00016438,2]
[366121832,1750074643235,-490.0,0.00016438,2]
[366121833,1750074643245,-661.85,0.00016438,2]
[366121835,1750074643256,-528.4,0.00016438,2]
[366121836,1750074643266,-490.0,0.00016438,2]
[366121837,1750074643275,-490.0,0.00016438,2]
[366121840,1750074643520,-490.0,0.00016438,2]
[366121841,1750074643558,-490.0,0.00016438,2]
[366121842,1750074643568,-490.0,0.00016438,2]
[366121843,1750074643578,-1004.51,0.00016438,2]
[366121844,1750074643588,-926.7,0.00016438,2]
[366121845,1750074643599,-1640.21,0.00016438,2]
[366121846,1750074643610,-250.0,0.00016438,2]
[366121847,1750074643620,-254.08113285,0.00016438,2]
[366121848,1750074643630,-684.86,0.00016438,2]
[366121849,1750074643640,-1140.32,0.00016438,2]
[366121850,1750074643651,-490.0,0.00016438,2]
[366121851,1750074643661,-189.4070775,0.00016438,2]
[366121852,1750074643672,-491.75287119,0.00016438,2]
[366121853,1750074643682,-490.0,0.00016438,2]
[366121854,1750074643693,-490.0,0.00016438,2]
[366121855,1750074643704,-1002.05,0.00016438,2]
[366121856,1750074643716,-1012.45,0.00016438,2]
[366121857,1750074643728,-490.0,0.00016438,2]
[366121858,1750074643738,-490.0,0.00016438,2]
[366121859,1750074643751,-490.0,0.00016438,2]
[366121860,1750074643762,-1611.53,0.00016438,2]
[366121861,1750074643773,-490.0,0.00016438,2]
[366121862,1750074643783,-490.0,0.00016438,2]
[366121863,1750074643794,-490.0,0.00016438,2]
[366121864,1750074643804,-1453.01,0.00016438,2]
[366121865,1750074643815,-490.0,0.00016438,2]
[366121866,1750074643826,-490.0,0.00016438,2]
[366121867,1750074643837,-882.28,0.00016438,2]
[366121868,1750074643847,-510.4,0.00016438,2]
[366121869,1750074643857,-490.0,0.00016438,2]
[366121870,1750074643868,-490.0,0.00016438,2]
[366121871,1750074643878,-207.32054634,0.00016438,2]
[366121872,1750074643889,-490.0,0.00016438,2]